bitfinex/quotes_ETHUSD_20251215
["timestamp","ask_amount","ask_price","bid_price","bid_amount"]
[1765811860517,0.559,3024.3,3022.8,0.4663]
[1765811860719,0.559,3024.3,3021.0,0.002]
[1765811861051,0.58047529,3023.3,3021.4,3.30970746]
[1765811861251,1.71709634,3023.2,3021.4,3.30970746]
[1765811861419,2.37679634,3023.2,3021.4,3.30970746]
[1765811861622,0.58047529,3023.0,3021.4,3.30970746]
[1765811861938,0.58047529,3023.0,3021.5,0.4663]
[1765811862251,1.0318,3022.9,3021.3,3.44619649]
[1765811862454,0.559,3022.8,3021.3,7.22233]
[1765811862662,0.559,3022.7,3021.4,0.4663]
[1765811862863,0.01964926,3023.5,3021.6,30.0]
[1765811863076,0.559,3023.4,3021.5,1.05321635]
[1765811863236,0.559,3023.4,3021.6,0.4663]
[1765811863576,3.30775337,3023.2,3021.8,9.92785755]
[1765811863892,3.30775337,3023.2,3021.9,0.4663]
[1765811863893,0.559,3023.1,3021.9,0.4663]
[1765811864184,0.57864926,3023.1,3021.9,0.4663]
[1765811864382,0.4728,3023.0,3021.0,3.31207021]
[1765811864547,0.405504,3022.9,3021.1,3.31002899]
[1765811864751,0.98597929,3022.7,3021.0,0.002]
[1765811864984,0.405504,3022.5,3021.0,0.002]
[1765811865172,0.4728,3022.6,3021.0,0.002]
[1765811865352,0.7459,3022.4,3021.0,0.002]
[1765811865683,6.61791468,3022.1,3021.0,0.03510162]
[1765811865880,0.01964926,3021.9,3021.0,0.002]
[1765811866061,0.559,3021.8,3021.0,0.002]
[1765811866277,0.559,3021.7,3021.0,0.002]
[1765811866458,0.4728,3022.3,3021.0,0.002]
[1765811866459,0.01964926,3022.6,3021.1,0.4663]
[1765811866659,0.4728,3023.0,3021.1,0.4663]
[1765811866890,0.559,3022.7,3021.1,0.4663]
[1765811867052,0.1869,3023.6,3021.3,23.250926]
[1765811867249,0.1869,3023.6,3021.2,1.17257472]
[1765811867250,0.559,3023.3,3021.6,0.58047529]
[1765811867473,0.559,3023.3,3021.8,0.58047529]
[1765811867703,0.1869,3024.3,3021.9,0.4663]
[1765811867849,0.57864926,3024.2,3022.0,6.438247]
[1765811868060,0.57864926,3024.2,3022.1,0.4663]
[1765811868262,0.57864926,3024.2,3022.2,20.559275]
[1765811868263,1.34414498,3024.1,3022.2,20.559275]
[1765811868467,0.01964926,3024.0,3021.9,0.4663]
[1765811868688,0.49244926,3024.0,3021.9,0.4663]
[1765811868992,0.01964926,3023.8,3021.9,0.4663]
[1765811869163,0.01964926,3023.8,3021.6,6.61900978]
[1765811869164,0.01964926,3023.6,3021.6,6.61900978]
[1765811869481,0.559,3023.5,3021.7,1.45915147]
[1765811869682,13.2497875,3023.4,3021.7,4.76851334]
[1765811869880,13.2497875,3023.4,3021.7,7.08505724]
[1765811869881,10.41505294,3023.4,3021.7,7.08505724]
[1765811870187,0.01964926,3023.0,3021.3,0.1364]
[1765811870487,0.01964926,3022.8,3021.3,0.1364]
[1765811870800,0.98597929,3022.5,3021.0,0.002]
[1765811870957,1.35214274,3022.4,3021.0,0.002]
[1765811871157,0.559,3022.3,3021.0,0.002]
[1765811871483,1.45284274,3022.4,3021.0,0.4683]
[1765811871484,0.559,3022.2,3021.0,0.4683]
[1765811871665,6.61791468,3022.1,3021.0,3.31215149]
[1765811871869,0.559,3022.0,3021.0,6.62231368]
[1765811872075,3.30865423,3022.4,3021.1,0.66243137]
[1765811872265,0.559,3022.3,3021.1,1.12873137]
[1765811872594,0.559,3022.3,3021.1,0.66243137]
[1765811872898,0.1869,3022.2,3021.0,0.002]
[1765811873390,0.1869,3022.2,3021.8,0.003]
[1765811873391,0.4728,3022.1,3021.8,0.003]
[1765811873562,3.30906684,3022.0,3021.8,0.003]
[1765811873972,1.0318,3021.9,3021.8,0.003]
[1765811874196,2.12769954,3021.9,3021.8,0.003]
[1765811874399,0.4728,3022.5,3021.8,0.003]
[1765811874691,6.94544813,3023.6,3021.8,0.4693]
[1765811874692,3.30797221,3023.0,3021.8,0.4693]
[1765811874872,0.559,3022.7,3021.8,0.003]
[1765811875894,3.3078143,3023.2,3021.8,0.003]
[1765811875895,0.559,3023.0,3021.8,0.003]
[1765811876070,1.0318,3023.0,3021.8,0.003]
[1765811876673,0.4728,3022.9,3021.8,0.003]
[1765811877172,7.41824813,3022.9,3021.8,0.003]
[1765811877513,0.4728,3022.9,3021.8,0.003]
[1765811877669,3.30750052,3022.7,3021.8,0.003]
[1765811878079,0.1869,3022.6,3021.8,0.003]
[1765811878260,7.60514813,3022.6,3021.8,0.003]
[1765811878462,0.559,3022.5,3021.8,0.003]
[1765811878676,0.405504,3022.4,3021.8,0.003]
[1765811878876,0.4728,3022.3,3021.8,0.003]
[1765811879403,6.94598212,3022.1,3021.8,0.003]
[1765811879707,7.17713368,3022.0,3021.8,0.003]
[1765811880011,7.61677629,3021.9,3021.8,0.003]
[1765811880213,31.45877929,3021.9,3021.0,0.002]
[1765811880519,31.45877929,3021.9,3020.9,0.002]
[1765811880520,0.98597929,3021.4,3020.9,0.002]
[1765811880689,0.405504,3021.2,3020.9,0.002]
[1765811881008,17.71028,3020.9,3019.7,0.002]
[1765811881309,0.1869,3019.8,3019.7,0.002]
[1765811881509,0.7459,3019.8,3019.7,0.002]
[1765811881709,0.7459,3019.8,3018.0,3.31336113]
[1765811881710,14.47391032,3019.8,3018.0,3.31336113]
[1765811881912,0.559,3019.7,3018.0,0.03313452]
[1765811882116,0.405504,3019.5,3017.9,3.31355976]
[1765811882419,0.405504,3019.5,3017.4,0.1494]
[1765811882716,0.405504,3019.3,3017.7,3.31369078]
[1765811882904,0.559,3019.2,3017.4,0.1494]
[1765811883075,1.0411,3019.2,3017.4,0.1494]
[1765811883284,0.4821,3019.6,3017.9,6.62711421]
[1765811883579,3.31180659,3019.5,3017.7,3.31367866]
[1765811883783,0.4821,3019.6,3017.9,8.83613229]
[1765811883784,0.01964926,3019.0,3017.9,8.83613229]
[1765811884081,0.1932,3020.7,3018.2,30.0]
[1765811884284,0.1932,3020.7,3018.6,11.981925]
[1765811884285,0.559,3020.2,3018.6,11.981925]
[1765811884502,0.559,3020.2,3018.7,0.181]
[1765811884718,0.01964926,3019.1,3018.0,0.4783]
[1765811885022,0.01964926,3019.1,3017.4,3.46343307]
[1765811885023,1.0411,3019.0,3017.4,3.46343307]
[1765811885189,0.1932,3018.1,3016.7,0.181]
[1765811885519,6.94598212,3017.6,3016.3,0.002]
[1765811885722,0.58047529,3017.8,3016.3,0.002]
[1765811885932,0.559,3017.7,3016.4,0.4783]
[1765811886155,0.6753,3018.5,3016.5,2.929813]
[1765811886316,0.559,3018.8,3016.8,30.0]
[1765811886516,0.559,3018.8,3016.5,0.964504]
[1765811886517,0.559,3018.8,3017.1,0.58047529]
[1765811886855,1.0411,3018.8,3016.9,0.4783]
[1765811887003,0.1932,3019.9,3017.8,6.94598212]
[1765811887214,0.4821,3020.4,3017.8,6.94598212]
[1765811887215,0.559,3020.2,3018.1,0.58047529]
[1765811887453,0.559,3020.6,3018.6,8.26157]
[1765811887607,3.311039,3020.2,3018.4,0.58047529]
[1765811888032,0.4821,3020.1,3018.5,18.428662]
[1765811888344,0.1932,3020.7,3018.7,5.47729]
[1765811888345,0.559,3020.3,3018.7,5.47729]
[1765811888519,3.5037153,3020.7,3018.7,5.47729]
[1765811888520,0.1932,3020.7,3018.9,27.804081]
[1765811888849,0.022212,3021.0,3019.4,30.58047529]
[1765811889057,0.022212,3021.0,3019.6,3.701109]
[1765811889266,0.4821,3020.9,3018.3,13.25249312]
[1765811889545,0.405504,3019.9,3018.2,3.31320842]
[1765811889721,7.35148612,3019.6,3017.3,0.1652]
[1765811889930,0.405504,3019.6,3017.4,10.7685852]
[1765811890270,0.4821,3019.5,3017.4,10.7685852]
[1765811890550,0.405504,3019.4,3017.4,10.7685852]
[1765811890715,0.01964926,3019.1,3017.5,1.09337852]
[1765811890915,0.559,3019.0,3017.5,1.09337852]
[1765811891144,1.0411,3019.0,3017.5,1.09337852]
[1765811891522,0.4821,3018.9,3017.5,1.09337852]
[1765811891838,0.4821,3018.9,3017.6,13.25556732]
[1765811892044,0.559,3019.5,3017.7,1.99389458]
[1765811892227,4.31282626,3019.4,3017.5,3.31397163]
[1765811892434,6.94598212,3018.7,3017.4,0.002]
[1765811892622,0.98597929,3018.4,3017.4,0.002]
[1765811892947,1.77245633,3018.3,3017.4,0.002]
[1765811893118,0.01964926,3018.2,3017.4,0.002]
[1765811893316,0.4821,3018.2,3017.4,0.002]
[1765811893825,0.559,3018.5,3017.4,0.002]
[1765811894180,0.4821,3018.4,3017.4,0.002]
[1765811894370,0.1932,3018.7,3017.4,0.1672]
[1765811894520,0.1902,3018.7,3017.4,0.6455]
[1765811894720,0.559,3018.8,3017.4,0.6455]
[1765811895253,0.4821,3018.7,3017.4,0.002]
[1765811895419,0.01964926,3019.5,3017.4,0.002]
[1765811895420,3.31213566,3019.2,3017.4,0.002]
[1765811895625,1.0411,3019.1,3017.4,0.002]
[1765811895953,0.559,3019.0,3017.4,0.002]
[1765811896164,5.80232402,3018.4,3017.4,0.002]
[1765811896452,0.1932,3017.5,3017.4,0.002]
[1765811896620,0.7522,3017.5,3017.4,0.002]
[1765811896816,1.2343,3017.5,3017.4,0.002]
[1765811897658,0.559,3017.7,3017.4,0.002]
[1765811898039,1.0411,3017.7,3017.4,0.002]
[1765811898266,0.4821,3017.6,3017.4,0.002]
[1765811898562,0.76686683,3017.5,3017.4,0.002]
[1765811898924,1.26861609,3017.5,3017.4,0.002]
[1765811899120,1.82761609,3017.5,3017.4,0.002]
[1765811899317,1.80796683,3017.5,3017.4,0.002]
[1765811899764,0.405504,3017.2,3016.3,0.002]
[1765811900061,0.1932,3016.4,3016.3,0.002]
[1765811900229,0.7522,3016.4,3016.3,0.002]
[1765811900419,1.2343,3016.4,3016.3,0.002]
[1765811900962,0.1932,3017.0,3016.3,0.002]
[1765811901168,0.559,3016.7,3016.3,0.002]
[1765811901361,0.405504,3016.6,3016.1,0.002]
[1765811901569,6.3447,3016.1,3015.4,0.15897822]
[1765811901866,0.405504,3015.2,3015.0,899.5]
[1765811902162,0.964504,3015.1,3015.0,898.95]
[1765811902389,0.559,3015.1,3015.0,897.975]
[1765811902528,3.31641959,3015.3,3015.0,897.975]
[1765811902733,3.31633063,3015.4,3015.0,897.975]
[1765811902734,0.559,3015.2,3015.0,897.975]
[1765811902930,2.503736,3015.1,3015.0,897.975]
[1765811903169,0.98597929,3015.1,3015.0,897.9649]
[1765811903481,0.559,3015.1,3015.0,897.9649]
[1765811903677,3.31631435,3015.4,3015.0,897.9649]
[1765811903962,0.56,3015.3,3015.0,897.9649]
[1765811904139,3.31583221,3015.9,3015.0,901.28157061]
[1765811904348,0.56,3015.8,3015.0,897.9649]
[1765811904528,0.0747,3016.0,3015.0,901.28164958]
[1765811904734,0.0747,3016.8,3015.0,908.39344874]
[1765811904934,0.56,3016.7,3015.1,0.4783]
[1765811905178,0.56,3016.7,3015.0,911.23189832]
[1765811905179,0.6347,3016.7,3015.0,904.59839916]
[1765811905479,0.405504,3016.4,3015.0,904.59839916]
[1765811905666,0.56,3016.3,3015.0,907.91514874]
[1765811905861,0.56,3016.3,3015.0,905.07669916]
[1765811906039,0.1932,3017.0,3015.1,0.51146639]
[1765811906236,0.18079668,3017.4,3015.2,3.20960313]
[1765811906237,0.56,3016.9,3015.2,3.20960313]
[1765811906473,0.56,3016.9,3015.3,0.58047529]
[1765811906681,0.56,3016.9,3015.3,0.4783]
[1765811906898,0.56,3016.9,3015.0,904.59839916]
[1765811906899,0.0747,3016.8,3015.0,904.59839916]
[1765811907040,0.56,3017.1,3015.1,0.4783]
[1765811907440,0.0747,3017.0,3015.1,0.4783]
[1765811907684,20.006124,3016.6,3015.0,904.59839916]
[1765811907849,5.80232402,3016.2,3015.0,897.9649]
[1765811908360,0.0747,3016.1,3015.0,897.9649]
[1765811908619,0.56,3016.0,3015.0,897.9649]
[1765811908871,0.98597929,3015.7,3015.0,897.9649]
[1765811909078,0.58047529,3015.2,3015.0,897.8901]
[1765811909284,17.88054919,3015.1,3015.0,897.8901]
[1765811909644,17.88054919,3015.1,3015.0,897.8921]
[1765811909645,15.49585522,3015.1,3015.0,897.8921]
[1765811909866,19.3724948,3015.1,3015.0,897.8921]
[1765811910180,20.6724948,3015.1,3015.0,179.76565749]
[1765811910342,26.69517924,3015.1,3015.0,179.76565749]
[1765811910544,23.20817924,3015.1,3015.0,179.76565749]
[1765811910757,39.28658324,3015.1,3015.0,179.76565749]
[1765811911078,39.28658324,3015.1,3015.0,174.48552538]
[1765811911273,38.72658324,3015.1,3015.0,172.81547504]
[1765811911580,23.59148322,3015.1,3015.0,172.81547504]
[1765811911778,31.75939424,3015.1,3015.0,172.81547504]
[1765811912004,7.40610795,3015.1,3015.0,172.81547504]
[1765811912180,19.962771,3016.6,3015.0,172.81547504]
[1765811912385,19.69220602,3016.5,3015.0,172.81547504]
[1765811912695,13.685422,3016.1,3015.0,172.81547504]
[1765811912880,0.563,3016.0,3015.0,176.13213458]
[1765811913085,1.4248422,3015.9,3015.0,172.81547504]
[1765811913399,5.80332402,3016.7,3015.0,172.81547504]
[1765811913400,0.01964926,3015.7,3015.0,176.13222462]
[1765811913693,0.01964926,3015.7,3015.0,172.81547504]
[1765811913858,5.873493,3015.6,3015.0,172.81547504]
[1765811914062,5.82197328,3015.7,3015.0,172.81547504]
[1765811914063,0.01964926,3015.7,3015.0,172.81547504]
[1765811914266,0.563,3015.6,3015.0,176.13222462]
[1765811914659,0.563,3015.6,3015.0,179.4489742]
[1765811915101,0.563,3015.6,3015.0,172.81547504]
[1765811915255,0.98597929,3015.5,3015.0,172.81547504]
[1765811915461,0.01964926,3015.1,3015.0,172.81547504]
[1765811915706,0.73513033,3015.4,3015.0,172.81547504]
[1765811915866,0.563,3015.3,3015.0,172.81547504]
[1765811916064,0.563,3015.3,3015.0,179.44895351]
[1765811916280,0.563,3015.3,3015.0,172.81547504]
[1765811916488,0.01964926,3015.1,3015.0,172.81547504]
[1765811916693,0.563,3015.1,3015.0,172.81547504]
[1765811917059,0.585212,3015.1,3015.0,172.81547504]
[1765811917290,0.585212,3015.1,3015.0,176.13222462]
[1765811917494,0.022212,3015.1,3015.0,176.13222462]
[1765811917693,0.563,3015.8,3015.0,182.65857733]
[1765811917879,0.563,3015.8,3015.0,182.76572378]
[1765811918082,0.563,3015.8,3015.1,0.1851]
[1765811918284,0.563,3015.8,3015.1,0.6505]
[1765811918895,0.563,3015.8,3015.0,176.13222462]
[1765811919060,0.01964926,3016.5,3015.0,186.08247336]
[1765811919271,0.001,3016.7,3015.1,3.67500313]
[1765811919503,0.563,3016.6,3015.2,0.58047529]
[1765811919709,0.001,3016.7,3015.3,2.881215]
[1765811919955,0.001,3016.7,3015.6,16.5804483]
[1765811920106,0.001,3016.7,3016.6,0.1851]
[1765811920309,0.563,3017.7,3016.6,0.6505]
[1765811920605,0.563,3017.7,3015.9,0.6505]
[1765811920606,0.01964926,3017.0,3015.9,0.6505]
[1765811920837,0.001,3017.8,3016.1,30.0]
[1765811921136,0.001,3017.8,3016.2,3.58379094]
[1765811921458,0.001,3017.8,3016.6,0.58047529]
[1765811921744,0.001,3017.8,3016.9,11.025347]
[1765811921954,0.001,3017.8,3017.1,3.31444101]
[1765811922100,0.001,3017.8,3017.0,3.31451633]
[1765811922524,0.001,3017.8,3017.0,6.6290672]
[1765811922724,0.001,3017.8,3017.0,10.60652479]
[1765811923031,0.001,3017.8,3017.1,0.4654]
[1765811923450,0.001,3017.8,3017.0,6.6290672]
[1765811923695,0.01964926,3017.4,3015.2,3.3164767]
[1765811923930,0.01964926,3017.4,3015.1,6.63327098]
[1765811923931,5.80232402,3016.6,3015.1,6.63327098]
[1765811924229,0.0009,3016.3,3015.0,176.13222462]
[1765811924541,0.58047529,3015.9,3015.0,172.81547504]
[1765811924696,0.45091823,3015.8,3015.0,172.81547504]
[1765811924899,0.01964926,3015.2,3015.0,172.81547504]
[1765811925099,0.58264926,3015.2,3015.0,172.81547504]
[1765811925299,0.563,3015.2,3015.0,176.13221909]
[1765811925501,0.0009,3016.8,3015.0,182.76571825]
[1765811925695,0.5639,3016.4,3015.0,179.44896867]
[1765811925927,4.24411,3016.3,3015.0,172.81547504]
[1765811926130,0.564,3016.2,3015.0,176.13222462]
[1765811926351,0.0009,3016.8,3015.1,0.1851]
[1765811926552,0.564,3016.6,3015.2,0.4654]
[1765811926715,0.564,3016.6,3015.3,28.21603202]
[1765811926915,0.564,3016.6,3015.4,0.4654]
[1765811927123,0.001,3017.8,3015.1,0.1851]
[1765811927124,0.564,3016.5,3015.1,0.1851]
[1765811927342,6.25242,3016.3,3015.0,172.81547504]
[1765811927634,0.98597929,3016.2,3015.0,172.81547504]
[1765811927835,0.406404,3016.2,3015.0,172.81547504]
[1765811928022,0.98597929,3015.8,3015.0,172.81547504]
[1765811928199,0.0009,3016.1,3015.0,172.81547504]
[1765811928405,0.405504,3015.8,3015.0,172.81547504]
[1765811928606,13.622761,3015.7,3015.0,172.81547504]
[1765811928801,0.01964926,3015.1,3015.0,172.81547504]
[1765811929715,0.02054926,3015.1,3015.0,172.81547504]
[1765811930033,0.01964926,3016.3,3015.0,172.81547504]
[1765811930034,0.58364926,3015.2,3015.0,172.81547504]
[1765811930222,0.58364926,3015.2,3015.0,176.13221674]
[1765811930223,0.564,3015.2,3015.0,176.13221674]
[1765811930422,0.564,3015.2,3015.0,172.81547504]
[1765811930928,0.564,3015.2,3015.0,172.81447504]
[1765811931443,0.405504,3015.1,3015.0,172.81447504]
[1765811931741,0.42515326,3015.1,3015.0,172.81447504]
[1765811931928,4.11806726,3015.1,3015.0,172.81447504]
[1765811932133,5.16674928,3015.1,3015.0,172.81447504]
[1765811932843,0.01964926,3016.7,3015.0,179.44796337]
[1765811933168,0.01964926,3016.7,3015.0,182.76471295]
[1765811933314,0.01964926,3015.9,3015.0,179.44796337]
[1765811933649,0.01964926,3015.9,3015.0,172.81447504]
[1765811933811,0.01964926,3015.3,3015.0,172.81447504]
[1765811934011,0.564,3015.2,3015.0,172.81447504]
[1765811934446,0.564,3015.2,3015.0,176.13120886]
[1765811934610,0.564,3015.2,3015.0,176.02407817]
[1765811934815,0.564,3015.2,3015.0,179.34082361]
[1765811935234,0.01964926,3015.9,3015.0,172.81447504]
[1765811935437,0.01964926,3015.3,3015.0,172.81447504]
[1765811935641,0.01964926,3015.9,3015.0,176.13118002]
[1765811935809,0.01964926,3015.9,3015.0,179.4479296]
[1765811936017,0.564,3016.0,3015.0,189.75643189]
[1765811936218,0.001,3016.3,3015.1,0.4654]
[1765811936423,0.001,3016.3,3015.0,189.29103189]
[1765811936424,0.01964926,3016.0,3015.0,176.13118002]
[1765811936765,0.01964926,3016.0,3015.0,172.81447504]
[1765811936920,9.540487,3015.7,3015.0,172.81447504]
[1765811937249,0.564,3015.9,3015.0,172.81447504]
[1765811937250,0.9540487,3015.6,3015.0,172.81447504]
[1765811937434,0.01964926,3015.2,3015.0,172.81447504]
[1765811937830,0.01964926,3015.3,3015.0,176.13121149]
[1765811938028,0.01964926,3015.3,3015.0,172.81447504]
[1765811938419,0.01964926,3015.8,3015.0,176.13113919]
[1765811938623,0.01964926,3015.8,3015.0,182.6574919]
[1765811938847,0.01964926,3015.5,3015.0,179.44788877]
[1765811939076,0.01964926,3015.3,3015.0,172.81447504]
[1765811939374,0.564,3015.2,3015.0,172.81447504]
[1765811939944,6.16424729,3015.1,3015.0,172.81447504]
[1765811940141,31.67845328,3015.1,3015.0,172.81447504]
[1765811940344,19.63754428,3015.1,3015.0,172.81447504]
[1765811940655,25.76835913,3015.1,3015.0,91.37658072]
[1765811940844,25.76835913,3015.1,3015.0,63.74212054]
[1765811941049,25.76835913,3015.1,3015.0,58.67437042]
[1765811941243,37.80926813,3015.1,3015.0,54.3579288]
[1765811941445,0.405504,3013.9,3013.3,3.26618457]
[1765811941756,1.61570157,3014.5,3011.3,0.1655]
[1765811941757,48.92778,3013.0,3011.3,0.1655]
[1765811942077,0.58047529,3013.3,3011.3,0.1655]
[1765811942078,36.912764,3013.7,3011.3,13.44875452]
[1765811942265,0.563,3013.6,3011.7,5.80232402]
[1765811942480,0.1706858,3015.0,3012.3,5.80232402]
[1765811942667,5.80232402,3014.7,3012.4,0.03319612]
[1765811942979,36.924253,3014.5,3011.7,2.990641]
[1765811943177,30.006077,3014.6,3012.3,0.58047529]
[1765811943473,30.006077,3014.3,3012.3,0.58047529]
[1765811943661,30.006077,3014.3,3011.6,0.7568]
[1765811943844,30.006077,3014.1,3011.9,0.4867]
[1765811944045,30.006077,3014.1,3013.7,0.002]
[1765811944273,5.97300982,3015.0,3013.7,0.002]
[1765811944274,30.006077,3013.9,3013.7,0.002]
[1765811944473,30.006077,3014.9,3013.7,0.002]
[1765811944676,30.570077,3014.9,3013.7,0.002]
[1765811944989,0.1706858,3015.0,3014.8,0.1928]
[1765811945481,0.001,3015.8,3015.1,5.80232402]
[1765811945643,0.001,3015.8,3015.7,6.226882]
[1765811945841,0.001,3015.8,3015.7,0.6795]
[1765811946042,0.001,3017.1,3015.7,44.03719409]
[1765811946269,0.001,3017.1,3016.0,5.80232402]
[1765811946472,0.001,3017.1,3015.1,0.4867]
[1765811946473,4.838689,3017.0,3015.1,0.4867]
[1765811946668,4.838689,3017.0,3014.3,0.01964926]
[1765811946669,11.135849,3016.5,3014.4,0.4867]
[1765811946907,0.58047529,3016.2,3014.5,3.31718993]
[1765811947125,0.1706,3016.9,3013.9,0.4867]
[1765811947126,0.58047529,3015.9,3013.9,0.4867]
[1765811947412,0.1706,3016.8,3015.2,3.31650596]
[1765811947629,0.1698,3016.8,3015.0,3.31667743]
[1765811947917,0.02064926,3017.1,3015.8,2.795068]
[1765811947918,0.001,3017.1,3015.8,2.795068]
[1765811948224,5.8079224,3018.9,3015.1,0.565]
[1765811948225,0.001,3018.0,3017.0,0.1928]
[1765811948690,0.001,3018.0,3016.8,0.4867]
[1765811948871,0.001,3018.0,3016.6,0.1928]
[1765811949074,0.001,3018.0,3016.1,0.1928]
[1765811949075,0.01964926,3017.9,3016.1,0.1928]
[1765811949308,0.01964926,3017.4,3015.3,0.4867]
[1765811949508,0.01964926,3017.2,3015.3,0.4867]
[1765811949720,0.565,3017.1,3015.8,3.31582818]
[1765811949927,0.565,3017.1,3015.3,0.4867]
[1765811950075,3.33295796,3018.2,3015.6,0.58047529]
[1765811950076,0.1708,3017.9,3015.6,0.58047529]
[1765811950393,0.1708,3017.9,3015.4,13.29840153]
[1765811950394,11.479943,3017.8,3015.7,0.63883977]
[1765811950596,11.479943,3017.8,3015.4,7.11931922]
[1765811950597,0.58047529,3017.6,3015.4,7.11931922]
[1765811950783,0.58047529,3017.6,3015.5,0.4867]
[1765811950970,2.1149,3017.4,3015.5,0.4867]
[1765811951173,0.565,3017.9,3015.7,5.8079224]
[1765811951421,0.565,3017.9,3016.0,0.58047529]
[1765811951634,0.565,3017.9,3016.3,0.58047529]
[1765811951927,0.565,3018.8,3016.9,9.35236]
[1765811952077,0.001,3019.2,3017.2,9.94299348]
[1765811952277,0.001,3019.2,3017.9,8.590736]
[1765811952536,0.001,3019.2,3018.2,0.58047529]
[1765811952732,0.001,3019.2,3018.6,5.8079224]
[1765811953030,0.01964926,3020.9,3019.2,0.58047529]
[1765811953176,0.01964926,3020.9,3020.2,0.1928]
[1765811953377,0.01964926,3020.9,3020.2,12.72352874]
[1765811953604,0.1718,3022.3,3020.2,12.72352874]
[1765811953605,0.1728,3023.5,3020.8,6.94320345]
[1765811953832,0.1728,3023.5,3021.6,0.58047529]
[1765811954008,0.565,3024.0,3022.1,0.58047529]
[1765811954174,0.1728,3024.6,3022.2,0.565]
[1765811954510,0.1728,3024.6,3022.7,6.94320345]
[1765811954721,0.58047529,3024.2,3022.2,0.4867]
[1765811954878,10.543852,3024.0,3021.6,0.566]
[1765811955081,10.543852,3024.0,3021.9,3.30914131]
[1765811955082,17.142332,3024.0,3021.9,3.30914131]
[1765811955402,6.94320345,3023.7,3021.2,0.566]
[1765811955714,6.94320345,3023.7,3021.0,0.6795]
[1765811955715,0.58047529,3023.3,3021.0,0.6795]
[1765811955879,0.58047529,3023.1,3021.2,3.30994031]
[1765811956079,0.1728,3023.2,3021.2,9.92982918]
[1765811956315,0.60012455,3023.8,3021.2,6.61988612]
[1765811956316,0.7388,3023.1,3021.2,6.61988612]
[1765811956697,0.1728,3023.0,3021.2,9.92982918]
[1765811956899,0.1728,3023.0,3021.3,0.4867]
[1765811957636,12.436399,3022.3,3019.4,0.4867]
[1765811957930,12.436399,3022.3,3019.2,3.31212827]
[1765811957931,7.798114,3021.9,3019.6,1.0527]
[1765811958138,0.58047529,3021.4,3018.4,6.94320345]
[1765811958350,0.58047529,3021.4,3018.6,3.31277736]
[1765811958351,0.98597929,3021.1,3018.6,3.31277736]
[1765811958647,0.405504,3020.5,3017.9,0.1928]
[1765811958794,0.405504,3020.5,3016.9,0.566]
[1765811958795,0.98597929,3019.8,3016.9,0.566]
[1765811959099,14.792999,3019.9,3017.0,13.60541523]
[1765811959100,0.58047529,3019.9,3017.0,13.60541523]
[1765811959304,0.58047529,3019.6,3017.1,2.53298681]
[1765811959613,0.1728,3019.9,3017.3,0.01964926]
[1765811959809,0.405504,3019.7,3017.4,0.566]
[1765811959995,0.58047529,3019.4,3017.5,6.6280033]
[1765811960194,0.58047529,3019.6,3017.5,3.31400165]
[1765811960195,7.507449,3019.3,3017.5,3.31400165]
[1765811960397,0.98597929,3019.2,3017.3,0.4867]
[1765811960596,0.58047529,3018.8,3016.8,0.1928]
[1765811960828,0.1728,3018.7,3016.8,0.6795]
[1765811961028,0.1728,3018.7,3017.1,3.31433889]
[1765811961300,0.405504,3018.2,3016.0,0.4867]
[1765811961499,0.405504,3018.2,3014.4,0.21244926]
[1765811961500,0.565,3018.1,3016.7,3.31479027]
[1765811961834,2.255,3018.0,3016.1,0.4867]
[1765811961998,2.255,3018.0,3016.2,3.31543001]
[1765811962328,0.01964926,3018.3,3016.2,7.01107302]
[1765811962636,0.565,3018.2,3016.2,10.32650303]
[1765811962798,0.405504,3018.0,3016.1,3.80223107]
[1765811962999,9.005733,3018.0,3016.1,3.31553107]
[1765811963333,9.005733,3018.0,3015.4,0.002]
[1765811963334,0.01964926,3016.9,3015.4,0.002]
[1765811963502,0.565,3016.8,3015.5,3.31609473]
[1765811963702,0.58047529,3016.6,3015.4,0.002]
[1765811963912,9.756758,3016.3,3015.4,0.002]
[1765811964113,17.7875,3016.5,3015.4,0.002]
[1765811964429,0.42515326,3016.9,3015.4,0.002]
[1765811964430,0.01964926,3016.9,3015.4,0.002]
[1765811964732,0.565,3016.7,3015.4,0.002]
[1765811965303,0.565,3016.7,3016.0,0.002]
[1765811965633,22.134699,3016.3,3016.0,0.002]
[1765811965834,0.1708,3016.2,3015.4,0.002]
[1765811966132,0.405504,3016.1,3014.7,0.002]
[1765811966434,0.405504,3015.4,3014.7,0.002]
[1765811966607,0.58464926,3016.7,3014.1,0.002]
[1765811966608,0.58047529,3015.0,3014.1,0.002]
[1765811966935,0.565,3014.9,3014.1,0.002]
[1765811967433,0.01964926,3015.4,3014.1,0.002]
[1765811967635,0.565,3015.0,3014.1,0.002]
[1765811968859,0.42515326,3016.4,3014.1,0.002]
[1765811968860,0.18644926,3016.9,3014.4,6.55768]
[1765811969041,0.565,3016.5,3014.6,2.422021]
[1765811969239,0.565,3016.5,3014.5,1.35205327]
[1765811969414,22.115429,3016.3,3014.2,0.1928]
[1765811969615,0.1668,3016.2,3014.1,0.002]
[1765811970857,0.166,3016.2,3014.2,0.1993]
[1765811971007,0.1232,3016.1,3014.2,0.0693]
[1765811971209,0.6872,3016.1,3014.3,0.4841]
[1765811971536,0.6872,3016.1,3014.1,0.58247529]
[1765811971537,4.378001,3015.8,3014.1,0.002]
[1765811971706,4.39765026,3015.8,3014.1,0.002]
[1765811971908,0.01964926,3015.5,3014.1,0.002]
[1765811972546,0.405504,3015.3,3014.1,0.002]
[1765811972725,0.58047529,3015.3,3014.1,0.002]
[1765811972929,0.296,3015.2,3014.1,0.002]